{"text_format":"1","workbook":"xlsx","n_sheets":3,"sheets":["Feuil1","Feuil2","Feuil3"],"not_rendered":{"charts":0,"images":0,"macros":1,"external_links":0,"defined_names":0,"comments":0,"pivot_tables":0},"unopened":[],"bounds":{"document_bytes":16777216,"sheet_cells":100000,"rows_first":2000,"rows_last":500,"rows_between":2000,"halvings":0,"cell_chars":16384,"cell_head_chars":4096},"cells_cut":0,"cells_raw":0,"read":"whole","date_system":"1900"}

{"sheet":"Feuil1","index":0,"n_rows":35,"n_cols":13,"rows_kept":35,"cut":false,"hidden":false,"merged":[[0,3,0,6],[1,0,3,1],[1,2,2,6],[3,2,3,7]]}
[]
["جمعية الأمان للماء الصالح للشرب    \nمركز صنهاجة - صفرو\n",null,"لائحة  المنخرطين : بـــصــنــهـــاجـة - S ",null,null,null,null,"السنة : 2018",null,"الاستهلاك","من صفر الى 10","ما فوق الــ 10 الى 30","30 أكثرمن "]
[null,null,null,null,null,null,null,"الشهر: 10",null,"السعر",2.5,4.5,6]
[]
["رقم العداد","الاسم و النسب","رقم البطاقة الوطنية","العنوان","الدليل السابق","الدليل الحالي","الفرق","الثمن بالدرهم"]
[1,null,null,null,1,2,2,{"$f":"IF(N($G6)>0,My_Customesion($G6,$K$3,$L$3,$M$3),\"\")","v":5}]
[2,null,null,null,15,55,{"$f":"F7-E7","v":40},{"$f":"IF(N($G7)>0,My_Customesion($G7,$K$3,$L$3,$M$3),\"\")","v":175}]
[3,null,null,null,1,10,9,22.5]
[4,null,null,null,1,12,11,29.5]
[5,null,null,null,1,12,11,29.5]
[6,null,null,null,1,39,38,163,null,null,null,null," =IF(N($G6)>0,My_Customesion($G6,$K$3,$L$3,$M$3),\"\")"]
[7,null,null,null,1,100,99,{"$f":"IF(N($G12)>0,My_Customesion($G12,$K$3,$L$3,$M$3),\"\")","v":529}]
[8,null,null,null,null,null,0,{"$f":"IF(N($G13)>0,My_Customesion($G13,$K$3,$L$3,$M$3),\"\")","v":""}]
[null,null,null,null,null,null,null,"",null,"مقارنة","المصروف"]
[null,null,null,null,null,null,null,"",null,null,99]
[null,null,null,null,null,null,null,"","أول 10","10*25",25,"الشطر 1",10]
[null,null,null,null,null,null,null,"","من 11 الى30","20*4.5",90,"الشطر 2",20]
[null,null,null,null,null,null,null,"","اكثر من 30","69*6",414,"الشطر 3",69]
[null,null,null,null,null,null,null,""]
[null,null,null,null,null,null,null,"",null,null,{"$f":"SUM(K16:K18)","v":529},"المجموع"]
[null,null,null,null,null,null,null,""]
[null,null,null,null,null,null,null,""]
[null,null,null,null,null,null,null,""]
[null,null,null,null,null,null,null,""]
[null,null,null,null,null,null,null,""]
[null,null,null,null,null,null,null,""]
[null,null,null,null,null,null,null,""]
[null,null,null,null,null,null,null,""]
[null,null,null,null,null,null,null,""]
[null,null,null,null,null,null,null,""]
[null,null,null,null,null,null,null,""]
[null,null,null,null,null,null,null,""]
[null,null,null,null,null,null,null,""]
[null,null,null,null,null,null,null,""]
[null,null,null,null,null,null,null,""]

{"sheet":"Feuil2","index":1,"n_rows":0,"n_cols":0,"rows_kept":0,"cut":false,"hidden":false,"merged":[]}

{"sheet":"Feuil3","index":2,"n_rows":0,"n_cols":0,"rows_kept":0,"cut":false,"hidden":false,"merged":[]}